[Event "Early-Titled-Tuesday-Blitz-April-23-2024"]
[Site "Chess.com"]
[Date "2024.04.23"]
[Round "1"]
[White "scarabee43"]
[Black "cthulhuuu"]
[Result "1-0"]
[WhiteElo "2842"]
[BlackElo "2477"]
[TimeControl "180+1"]
[EndTime "8:04:19 PDT"]
[Termination "scarabee43 won by resignation"]

1. Nf3 {[%clk 0:03:00.9]} 1... Nf6 {[%clk 0:02:59.8]} 2. c4 {[%clk 0:03:00.9]}
2... g6 {[%clk 0:03:00.1]} 3. Nc3 {[%clk 0:03:01.2]} 3... Bg7 {[%clk 0:03:00.9]}
4. d4 {[%clk 0:03:01.4]} 4... d6 {[%clk 0:03:01.3]} 5. Bg5 {[%clk 0:03:01.8]}
5... O-O {[%clk 0:03:01.5]} 6. e3 {[%clk 0:03:02.2]} 6... c5 {[%clk 0:03:01.5]}
7. d5 {[%clk 0:03:01.9]} 7... h6 {[%clk 0:02:59.1]} 8. Bh4 {[%clk 0:03:00.5]}
8... Nbd7 {[%clk 0:02:59.3]} 9. Be2 {[%clk 0:02:54.5]} 9... a6 {[%clk
0:02:59.3]} 10. O-O {[%clk 0:02:54.3]} 10... Rb8 {[%clk 0:02:59.5]} 11. a4
{[%clk 0:02:53.8]} 11... g5 {[%clk 0:02:55.3]} 12. Bg3 {[%clk 0:02:53.7]} 12...
Nh5 {[%clk 0:02:55.6]} 13. Qc2 {[%clk 0:02:49.9]} 13... Nxg3 {[%clk 0:02:55.4]}
14. hxg3 {[%clk 0:02:48.8]} 14... f5 {[%clk 0:02:36.2]} 15. Nd2 {[%clk
0:02:40.1]} 15... Ne5 {[%clk 0:02:17.4]} 16. f4 {[%clk 0:02:36.4]} 16... Ng6
{[%clk 0:02:14.3]} 17. fxg5 {[%clk 0:02:18.6]} 17... hxg5 {[%clk 0:02:15.2]} 18.
Bd3 {[%clk 0:02:19]} 18... e6 {[%clk 0:01:40.9]} 19. dxe6 {[%clk 0:02:18.1]}
19... Bxe6 {[%clk 0:01:41.2]} 20. Bxf5 {[%clk 0:02:18]} 20... Bxf5 {[%clk
0:01:41.4]} 21. Rxf5 {[%clk 0:02:17.9]} 21... Qe7 {[%clk 0:01:20]} 22. Nd5
{[%clk 0:02:15.1]} 22... Qe6 {[%clk 0:01:16.8]} 23. Rxg5 {[%clk 0:02:11.5]}
23... Ne5 {[%clk 0:01:03.1]} 24. Rh5 {[%clk 0:02:03]} 24... Qg6 {[%clk 0:00:48]}
25. Ne7+ {[%clk 0:02:02.6]} 1-0

[Event "Early-Titled-Tuesday-Blitz-April-23-2024"]
[Site "Chess.com"]
[Date "2024.04.23"]
[Round "1"]
[White "shimastream"]
[Black "Kostya0705"]
[Result "1-0"]
[WhiteElo "3056"]
[BlackElo "2544"]
[TimeControl "180+1"]
[EndTime "8:04:36 PDT"]
[Termination "shimastream won by resignation"]

1. Nf3 {[%clk 0:02:56.6]} 1... Nf6 {[%clk 0:02:58.6]} 2. c4 {[%clk 0:02:56.7]}
2... e6 {[%clk 0:02:58.5]} 3. g3 {[%clk 0:02:56.6]} 3... d5 {[%clk 0:02:59.2]}
4. Bg2 {[%clk 0:02:56.7]} 4... dxc4 {[%clk 0:02:59.8]} 5. Qa4+ {[%clk
0:02:53.7]} 5... Nbd7 {[%clk 0:03:00.4]} 6. Qxc4 {[%clk 0:02:53.7]} 6... a6
{[%clk 0:03:01]} 7. Qc2 {[%clk 0:02:53.4]} 7... c5 {[%clk 0:03:00.9]} 8. Nc3
{[%clk 0:02:52.7]} 8... Be7 {[%clk 0:03:01.3]} 9. O-O {[%clk 0:02:51.7]} 9...
O-O {[%clk 0:03:01.7]} 10. d4 {[%clk 0:02:51.5]} 10... Ra7 {[%clk 0:02:52.3]}
11. Rd1 {[%clk 0:02:51.2]} 11... b5 {[%clk 0:02:50.4]} 12. Bf4 {[%clk
0:02:38.1]} 12... Qb6 {[%clk 0:02:47.2]} 13. e4 {[%clk 0:02:32.8]} 13... cxd4
{[%clk 0:02:45.6]} 14. Nxd4 {[%clk 0:02:33.7]} 14... Bb7 {[%clk 0:02:16.6]} 15.
e5 {[%clk 0:02:31.6]} 15... Nh5 {[%clk 0:02:16.4]} 16. Be3 {[%clk 0:02:31.1]}
16... Bxg2 {[%clk 0:02:02]} 17. Kxg2 {[%clk 0:02:31.1]} 17... Qb7+ {[%clk
0:01:55.1]} 18. Qe4 {[%clk 0:01:50.3]} 18... b4 {[%clk 0:01:52.8]} 19. Nc6
{[%clk 0:01:45.2]} 19... bxc3 {[%clk 0:01:50.2]} 20. Bxa7 {[%clk 0:01:44.8]}
20... Kh8 {[%clk 0:01:35.7]} 21. Qf3 {[%clk 0:01:32.1]} 21... cxb2 {[%clk
0:01:31.1]} 22. Rab1 {[%clk 0:01:32.3]} 22... g6 {[%clk 0:01:28.1]} 23. Nxe7
{[%clk 0:01:28.4]} 23... Qxa7 {[%clk 0:01:28]} 24. Nc6 {[%clk 0:01:27.3]} 24...
Qb7 {[%clk 0:01:23.7]} 25. Rd2 {[%clk 0:01:23.1]} 25... Rc8 {[%clk 0:01:18.5]}
26. Rbxb2 {[%clk 0:01:23.1]} 1-0

[Event "Early-Titled-Tuesday-Blitz-April-23-2024"]
[Site "Chess.com"]
[Date "2024.04.23"]
[Round "1"]
[White "Levanzovsky"]
[Black "ViIIagra"]
[Result "0-1"]
[WhiteElo "2522"]
[BlackElo "2925"]
[TimeControl "180+1"]
[EndTime "8:04:42 PDT"]
[Termination "ViIIagra won by resignation"]

1. e4 {[%clk 0:02:51.5]} 1... d6 {[%clk 0:03:00.9]} 2. d4 {[%clk 0:02:51.1]}
2... Nf6 {[%clk 0:03:01.5]} 3. Nc3 {[%clk 0:02:50.5]} 3... e5 {[%clk 0:03:01.5]}
4. Nf3 {[%clk 0:02:49.8]} 4... Nbd7 {[%clk 0:03:01.6]} 5. Bc4 {[%clk 0:02:50.2]}
5... h6 {[%clk 0:03:02.1]} 6. a4 {[%clk 0:02:46.2]} 6... Be7 {[%clk 0:03:02.2]}
7. a5 {[%clk 0:02:45.4]} 7... O-O {[%clk 0:03:02.4]} 8. h3 {[%clk 0:02:43]} 8...
exd4 {[%clk 0:03:02.2]} 9. Nxd4 {[%clk 0:02:41.7]} 9... Nc5 {[%clk 0:03:02.7]}
10. Qf3 {[%clk 0:02:39.3]} 10... Nfd7 {[%clk 0:02:56.1]} 11. Bf4 {[%clk
0:02:24.5]} 11... Ne5 {[%clk 0:02:55.6]} 12. Bxe5 {[%clk 0:02:24.7]} 12... dxe5
{[%clk 0:02:56.5]} 13. Nf5 {[%clk 0:02:24.9]} 13... Bxf5 {[%clk 0:02:22.2]} 14.
Qxf5 {[%clk 0:02:22.8]} 14... Qd4 {[%clk 0:02:22.5]} 15. Ba2 {[%clk 0:01:59]}
15... c6 {[%clk 0:02:20.2]} 16. O-O {[%clk 0:01:59]} 16... Bf6 {[%clk
0:02:07.9]} 17. Rfd1 {[%clk 0:01:54.4]} 17... Qb4 {[%clk 0:02:07.7]} 18. Rab1
{[%clk 0:01:44.4]} 18... Rad8 {[%clk 0:02:00.9]} 19. f4 {[%clk 0:01:30.5]} 19...
Rxd1+ {[%clk 0:01:44.6]} 20. Rxd1 {[%clk 0:01:31.4]} 20... Qxb2 {[%clk
0:01:45.1]} 21. fxe5 {[%clk 0:01:31.4]} 21... Be7 {[%clk 0:01:40.5]} 22. Qf3
{[%clk 0:01:15]} 22... Qxc2 {[%clk 0:01:40.3]} 23. Rf1 {[%clk 0:01:14.8]} 23...
Ne6 {[%clk 0:01:31.7]} 24. Rf2 {[%clk 0:00:58.4]} 24... Bc5 {[%clk 0:01:30]} 0-1

[Event "Early-Titled-Tuesday-Blitz-April-23-2024"]
[Site "Chess.com"]
[Date "2024.04.23"]
[Round "1"]
[White "secretworker2027"]
[Black "leoduarte"]
[Result "1-0"]
[WhiteElo "2702"]
[BlackElo "2386"]
[TimeControl "180+1"]
[EndTime "8:04:44 PDT"]
[Termination "secretworker2027 won on time"]

1. e4 {[%clk 0:03:00.9]} 1... e5 {[%clk 0:02:57.4]} 2. Nf3 {[%clk 0:03:00.8]}
2... Nc6 {[%clk 0:02:55.3]} 3. Bc4 {[%clk 0:03:00.1]} 3... Bc5 {[%clk 0:02:54]}
4. c3 {[%clk 0:02:59.6]} 4... Nf6 {[%clk 0:02:51.8]} 5. d4 {[%clk 0:03:00.1]}
5... exd4 {[%clk 0:02:50.7]} 6. b4 {[%clk 0:03:00.7]} 6... Bb6 {[%clk
0:02:44.2]} 7. e5 {[%clk 0:02:59]} 7... d5 {[%clk 0:02:39.5]} 8. exf6 {[%clk
0:02:58.6]} 8... dxc4 {[%clk 0:02:37.5]} 9. Qe2+ {[%clk 0:02:59.2]} 9... Be6
{[%clk 0:02:33.2]} 10. b5 {[%clk 0:02:59]} 10... d3 {[%clk 0:02:26.4]} 11. Qe4
{[%clk 0:02:56.9]} 11... Na5 {[%clk 0:02:21.1]} 12. fxg7 {[%clk 0:02:53]} 12...
Rg8 {[%clk 0:02:16.4]} 13. Bg5 {[%clk 0:02:53.5]} 13... Qd5 {[%clk 0:02:11]} 14.
Qxh7 {[%clk 0:02:53.4]} 14... Kd7 {[%clk 0:02:05.8]} 15. O-O {[%clk 0:02:47.6]}
15... Bf5 {[%clk 0:01:55.6]} 16. Qh6 {[%clk 0:02:46.5]} 16... Rae8 {[%clk
0:01:46.9]} 17. Nbd2 {[%clk 0:02:39.4]} 17... Re6 {[%clk 0:01:46.1]} 18. Qh4
{[%clk 0:02:33.6]} 18... Rg6 {[%clk 0:00:30.6]} 19. Rae1 {[%clk 0:02:29.1]}
19... Kc8 {[%clk 0:00:28.3]} 20. Qh8 {[%clk 0:02:20.7]} 20... Rxg7 {[%clk
0:00:13.6]} 21. Re8+ {[%clk 0:02:20]} 21... Kd7 {[%clk 0:00:02.9]} 22. Rxg8
{[%clk 0:02:14.4]} 22... Rxg8 {[%clk 0:00:01.4]} 23. Qxg8 {[%clk 0:02:14.5]} 1-0

[Event "Early-Titled-Tuesday-Blitz-April-23-2024"]
[Site "Chess.com"]
[Date "2024.04.23"]
[Round "1"]
[White "ChessLebaneseSalah"]
[Black "Seochesspie"]
[Result "0-1"]
[WhiteElo "2517"]
[BlackElo "2912"]
[TimeControl "180+1"]
[EndTime "8:04:47 PDT"]
[Termination "Seochesspie won by resignation"]

1. e4 {[%clk 0:03:00.9]} 1... c5 {[%clk 0:02:59.9]} 2. Nf3 {[%clk 0:03:00.9]}
2... d6 {[%clk 0:03:00.1]} 3. d4 {[%clk 0:03:01]} 3... cxd4 {[%clk 0:03:00.3]}
4. Nxd4 {[%clk 0:03:01.9]} 4... Nf6 {[%clk 0:03:00.9]} 5. Nc3 {[%clk 0:03:02.1]}
5... a6 {[%clk 0:03:01.4]} 6. a3 {[%clk 0:03:00.6]} 6... Nbd7 {[%clk 0:02:56.4]}
7. Be3 {[%clk 0:02:58.6]} 7... e6 {[%clk 0:02:52.9]} 8. g4 {[%clk 0:02:57.6]}
8... Nc5 {[%clk 0:02:43.2]} 9. Qf3 {[%clk 0:02:52.1]} 9... Bd7 {[%clk
0:02:34.6]} 10. g5 {[%clk 0:02:50.1]} 10... Ng8 {[%clk 0:02:34.8]} 11. h4 {[%clk
0:02:37.1]} 11... Ne7 {[%clk 0:02:34.8]} 12. O-O-O {[%clk 0:02:31.2]} 12... Ng6
{[%clk 0:02:25.7]} 13. h5 {[%clk 0:02:16.5]} 13... Ne5 {[%clk 0:02:25.2]} 14.
Qg3 {[%clk 0:02:15.9]} 14... Qa5 {[%clk 0:02:20.3]} 15. f4 {[%clk 0:02:08.5]}
15... Nc6 {[%clk 0:02:20]} 16. Bc4 {[%clk 0:01:55.8]} 16... b5 {[%clk
0:02:18.3]} 17. Bd5 {[%clk 0:01:45.4]} 17... Rc8 {[%clk 0:01:51.6]} 18. Rhe1
{[%clk 0:01:36.3]} 18... b4 {[%clk 0:01:46.8]} 19. Bxc6 {[%clk 0:01:27.6]} 19...
bxc3 {[%clk 0:01:42.6]} 20. Bxd7+ {[%clk 0:01:25.7]} 20... Nxd7 {[%clk
0:01:41.1]} 21. Nb3 {[%clk 0:01:12.8]} 21... cxb2+ {[%clk 0:01:39.2]} 22. Kxb2
{[%clk 0:01:13.2]} 22... Qc3+ {[%clk 0:01:37.8]} 23. Kb1 {[%clk 0:01:04]} 23...
Qxc2+ {[%clk 0:01:37]} 24. Ka1 {[%clk 0:01:04.6]} 24... Qxb3 {[%clk 0:01:30.6]}
25. Qf2 {[%clk 0:00:56.6]} 25... Qxa3+ {[%clk 0:01:28.5]} 26. Kb1 {[%clk
0:00:56.6]} 26... Rb8+ {[%clk 0:01:26.6]} 27. Kc2 {[%clk 0:00:56.9]} 0-1

[Event "Early-Titled-Tuesday-Blitz-April-23-2024"]
[Site "Chess.com"]
[Date "2024.04.23"]
[Round "1"]
[White "jaskol95"]
[Black "pfalcon1949"]
[Result "1-0"]
[WhiteElo "2565"]
[BlackElo "1964"]
[TimeControl "180+1"]
[EndTime "8:04:48 PDT"]
[Termination "jaskol95 won by resignation"]

1. d4 {[%clk 0:02:59.4]} 1... Nf6 {[%clk 0:02:58.2]} 2. c4 {[%clk 0:02:59.1]}
2... c5 {[%clk 0:02:58]} 3. d5 {[%clk 0:02:55.6]} 3... b5 {[%clk 0:02:57.7]} 4.
cxb5 {[%clk 0:02:56.3]} 4... a6 {[%clk 0:02:57.9]} 5. Nc3 {[%clk 0:02:57]} 5...
g6 {[%clk 0:02:57.4]} 6. e4 {[%clk 0:02:56.9]} 6... Bg7 {[%clk 0:02:55.4]} 7. e5
{[%clk 0:02:56.9]} 7... Ng8 {[%clk 0:02:31.5]} 8. d6 {[%clk 0:02:48.4]} 8...
exd6 {[%clk 0:02:23]} 9. exd6 {[%clk 0:02:44.6]} 9... Nf6 {[%clk 0:02:15]} 10.
Qe2+ {[%clk 0:02:42.4]} 10... Kf8 {[%clk 0:02:14.7]} 11. Bg5 {[%clk 0:02:41.1]}
11... axb5 {[%clk 0:02:09.7]} 12. Nd5 {[%clk 0:02:32.9]} 12... Qa5+ {[%clk
0:01:50.7]} 13. b4 {[%clk 0:02:28.9]} 13... cxb4 {[%clk 0:01:14]} 14. Qe7+
{[%clk 0:02:27]} 14... Kg8 {[%clk 0:01:08.7]} 15. Nxf6+ {[%clk 0:01:57.4]} 15...
Bxf6 {[%clk 0:00:58.7]} 16. Bxf6 {[%clk 0:01:49.6]} 16... b3+ {[%clk 0:00:55.7]}
17. Kd1 {[%clk 0:01:50.2]} 1-0

[Event "Early-Titled-Tuesday-Blitz-April-23-2024"]
[Site "Chess.com"]
[Date "2024.04.23"]
[Round "1"]
[White "2Coaches1Profile"]
[Black "FairChess_on_YouTube"]
[Result "0-1"]
[WhiteElo "2552"]
[BlackElo "3101"]
[TimeControl "180+1"]
[EndTime "8:05:00 PDT"]
[Termination "FairChess_on_YouTube won by checkmate"]

1. d4 {[%clk 0:03:00.7]} 1... Nf6 {[%clk 0:02:59.7]} 2. Bg5 {[%clk 0:03:00.2]}
2... g6 {[%clk 0:02:58.7]} 3. Bxf6 {[%clk 0:03:00.2]} 3... exf6 {[%clk
0:02:59.6]} 4. e3 {[%clk 0:03:01]} 4... f5 {[%clk 0:02:57.8]} 5. c4 {[%clk
0:03:01]} 5... d5 {[%clk 0:02:57.5]} 6. cxd5 {[%clk 0:03:01]} 6... Qxd5 {[%clk
0:02:58.3]} 7. Nc3 {[%clk 0:03:01.9]} 7... Qd6 {[%clk 0:02:58]} 8. g3 {[%clk
0:03:00.9]} 8... c6 {[%clk 0:02:58.1]} 9. Bg2 {[%clk 0:03:01]} 9... Bg7 {[%clk
0:02:57.6]} 10. Nge2 {[%clk 0:03:01.4]} 10... Nd7 {[%clk 0:02:56.6]} 11. O-O
{[%clk 0:03:01.6]} 11... h5 {[%clk 0:02:56]} 12. h4 {[%clk 0:02:59.8]} 12... Nf6
{[%clk 0:02:56.1]} 13. a3 {[%clk 0:02:53.2]} 13... Ng4 {[%clk 0:02:55.6]} 14.
Nf4 {[%clk 0:02:45.1]} 14... Bd7 {[%clk 0:02:52.9]} 15. b4 {[%clk 0:02:38]}
15... g5 {[%clk 0:02:50.8]} 16. hxg5 {[%clk 0:02:37.5]} 16... h4 {[%clk
0:02:51.2]} 17. gxh4 {[%clk 0:02:22.5]} 17... Rxh4 {[%clk 0:02:52.1]} 18. Bf3
{[%clk 0:02:23.1]} 18... O-O-O {[%clk 0:02:48.4]} 19. b5 {[%clk 0:02:19]} 19...
Rdh8 {[%clk 0:02:46.7]} 20. Qa4 {[%clk 0:02:10.9]} 20... Nxe3 {[%clk 0:02:22]}
21. fxe3 {[%clk 0:02:03.1]} 21... Rxf4 {[%clk 0:02:22]} 22. bxc6 {[%clk
0:01:27.8]} 22... Rxd4 {[%clk 0:02:03]} 23. cxd7+ {[%clk 0:01:26.1]} 23... Kd8
{[%clk 0:02:03.1]} 24. Ra2 {[%clk 0:01:12.6]} 24... Rxa4 {[%clk 0:02:01.9]} 25.
Nxa4 {[%clk 0:01:08]} 25... Qd3 {[%clk 0:01:58.7]} 26. Re2 {[%clk 0:00:53.3]}
26... Qd6 {[%clk 0:01:53.7]} 27. Nb2 {[%clk 0:00:44.3]} 27... b5 {[%clk
0:01:49]} 28. Rd1 {[%clk 0:00:37.2]} 28... Qg3+ {[%clk 0:01:47.4]} 29. Bg2
{[%clk 0:00:37.6]} 29... Be5 {[%clk 0:01:47]} 30. Nd3 {[%clk 0:00:34.8]} 30...
Rh1+ {[%clk 0:01:46.2]} 31. Kxh1 {[%clk 0:00:33.8]} 31... Qh2# {[%clk
0:01:47.1]} 0-1

[Event "Early-Titled-Tuesday-Blitz-April-23-2024"]
[Site "Chess.com"]
[Date "2024.04.23"]
[Round "1"]
[White "chess_sharparchitect"]
[Black "djano"]
[Result "0-1"]
[WhiteElo "2229"]
[BlackElo "2614"]
[TimeControl "180+1"]
[EndTime "8:05:02 PDT"]
[Termination "djano won by resignation"]

1. c4 {[%clk 0:03:00]} 1... g6 {[%clk 0:02:58.7]} 2. Nc3 {[%clk 0:02:59.3]} 2...
Bg7 {[%clk 0:02:57.4]} 3. e4 {[%clk 0:02:58.7]} 3... c5 {[%clk 0:02:57.1]} 4.
Nf3 {[%clk 0:02:55.2]} 4... Nc6 {[%clk 0:02:57.2]} 5. d3 {[%clk 0:02:49]} 5...
d6 {[%clk 0:02:57.3]} 6. g3 {[%clk 0:02:41.1]} 6... Bg4 {[%clk 0:02:55.6]} 7.
Bg2 {[%clk 0:02:41.4]} 7... Qd7 {[%clk 0:02:54.4]} 8. h3 {[%clk 0:02:41.1]} 8...
Bxf3 {[%clk 0:02:54]} 9. Bxf3 {[%clk 0:02:39.6]} 9... Nf6 {[%clk 0:02:54.3]} 10.
Be3 {[%clk 0:02:37.4]} 10... O-O {[%clk 0:02:53]} 11. Qd2 {[%clk 0:02:29.8]}
11... Ne8 {[%clk 0:02:50.8]} 12. Bg2 {[%clk 0:02:23.6]} 12... Nc7 {[%clk
0:02:49.7]} 13. O-O {[%clk 0:02:22.5]} 13... Ne6 {[%clk 0:02:49.6]} 14. Ne2
{[%clk 0:02:15.4]} 14... Rab8 {[%clk 0:02:48]} 15. a4 {[%clk 0:02:10.3]} 15...
Ned4 {[%clk 0:02:43.5]} 16. Nxd4 {[%clk 0:02:04.2]} 16... Nxd4 {[%clk
0:02:40.8]} 17. Bxd4 {[%clk 0:01:58.4]} 17... Bxd4 {[%clk 0:02:40.1]} 18. Ra2
{[%clk 0:01:53.9]} 18... a6 {[%clk 0:02:40.4]} 19. b4 {[%clk 0:01:48.7]} 19...
b5 {[%clk 0:02:34]} 20. axb5 {[%clk 0:01:46.9]} 20... axb5 {[%clk 0:02:34.9]}
21. bxc5 {[%clk 0:01:43.6]} 21... bxc4 {[%clk 0:02:31]} 22. cxd6 {[%clk
0:01:32.8]} 22... c3 {[%clk 0:02:25.5]} 23. Qf4 {[%clk 0:01:13.4]} 23... Qxd6
{[%clk 0:02:25.8]} 24. Qg4 {[%clk 0:01:02.5]} 24... Rb2 {[%clk 0:02:21.7]} 25.
Raa1 {[%clk 0:00:45.7]} 25... Rfb8 {[%clk 0:02:10.7]} 26. Rac1 {[%clk
0:00:45.7]} 26... Rd2 {[%clk 0:02:07.6]} 27. h4 {[%clk 0:00:39.8]} 27... h5
{[%clk 0:02:04.4]} 28. Qf3 {[%clk 0:00:33.3]} 28... Rbb2 {[%clk 0:02:02.4]} 29.
Bh3 {[%clk 0:00:26.3]} 29... Rxf2 {[%clk 0:02:00.7]} 30. Rxf2 {[%clk 0:00:26.2]}
30... Rxf2 {[%clk 0:02:00]} 0-1

[Event "Early-Titled-Tuesday-Blitz-April-23-2024"]
[Site "Chess.com"]
[Date "2024.04.23"]
[Round "1"]
[White "Chesstiger64"]
[Black "littlepinkyboy"]
[Result "0-1"]
[WhiteElo "2348"]
[BlackElo "2656"]
[TimeControl "180+1"]
[EndTime "8:05:07 PDT"]
[Termination "littlepinkyboy won by checkmate"]

1. Nf3 {[%clk 0:03:00.1]} 1... d5 {[%clk 0:02:59.8]} 2. g3 {[%clk 0:03:00.4]}
2... Nf6 {[%clk 0:02:59]} 3. Bg2 {[%clk 0:03:01]} 3... g6 {[%clk 0:02:57.8]} 4.
O-O {[%clk 0:03:01.2]} 4... Bg7 {[%clk 0:02:56.5]} 5. d3 {[%clk 0:03:01.6]} 5...
O-O {[%clk 0:02:55.4]} 6. Nbd2 {[%clk 0:03:01.7]} 6... c5 {[%clk 0:02:54.2]} 7.
c3 {[%clk 0:03:01.9]} 7... Nc6 {[%clk 0:02:53.6]} 8. e4 {[%clk 0:03:02.2]} 8...
dxe4 {[%clk 0:02:50.7]} 9. Nxe4 {[%clk 0:03:02.2]} 9... Bf5 {[%clk 0:02:46.7]}
10. Qe2 {[%clk 0:03:00.8]} 10... Nxe4 {[%clk 0:02:38.6]} 11. dxe4 {[%clk
0:03:00.1]} 11... Bg4 {[%clk 0:02:38.6]} 12. h3 {[%clk 0:02:57.7]} 12... Bxf3
{[%clk 0:02:35.3]} 13. Bxf3 {[%clk 0:02:58.2]} 13... Qc7 {[%clk 0:02:31.4]} 14.
Bf4 {[%clk 0:02:55.6]} 14... Be5 {[%clk 0:02:24.1]} 15. Bxe5 {[%clk 0:02:53.9]}
15... Nxe5 {[%clk 0:02:24.5]} 16. Rfd1 {[%clk 0:02:48.5]} 16... Rad8 {[%clk
0:02:22.1]} 17. Rxd8 {[%clk 0:02:31]} 17... Rxd8 {[%clk 0:02:22.5]} 18. Rd1
{[%clk 0:02:31.5]} 18... c4 {[%clk 0:02:14.9]} 19. Rxd8+ {[%clk 0:02:22.2]}
19... Qxd8 {[%clk 0:02:15]} 20. Qe3 {[%clk 0:02:22.3]} 20... Qd3 {[%clk
0:01:58.9]} 21. Qxd3 {[%clk 0:02:13.5]} 21... cxd3 {[%clk 0:01:46.9]} 22. Bd1
{[%clk 0:02:12.9]} 22... Nc4 {[%clk 0:01:46.5]} 23. Kf1 {[%clk 0:02:02.4]} 23...
Nxb2 {[%clk 0:01:43.2]} 24. Ke1 {[%clk 0:02:02.5]} 24... Nc4 {[%clk 0:01:42.3]}
25. a4 {[%clk 0:01:25.8]} 25... a6 {[%clk 0:01:41.6]} 26. a5 {[%clk 0:01:19.7]}
26... Nxa5 {[%clk 0:01:40.8]} 27. Kd2 {[%clk 0:01:19.3]} 27... Nc4+ {[%clk
0:01:41]} 28. Kxd3 {[%clk 0:01:19.8]} 28... Nb2+ {[%clk 0:01:41.5]} 29. Kd2
{[%clk 0:01:20.5]} 29... Nxd1 {[%clk 0:01:41]} 30. Kxd1 {[%clk 0:01:21.1]} 30...
e5 {[%clk 0:01:36.5]} 31. Kc2 {[%clk 0:01:21.1]} 31... Kf8 {[%clk 0:01:36.1]}
32. Kb3 {[%clk 0:01:21.8]} 32... Ke7 {[%clk 0:01:34.9]} 33. Kb4 {[%clk
0:01:22.4]} 33... Kd6 {[%clk 0:01:33.6]} 34. Ka5 {[%clk 0:01:22.6]} 34... Kc5
{[%clk 0:01:33.8]} 35. f4 {[%clk 0:01:22.8]} 35... exf4 {[%clk 0:01:32.3]} 36.
gxf4 {[%clk 0:01:22.3]} 36... Kc4 {[%clk 0:01:32.1]} 37. Kb6 {[%clk 0:01:21.5]}
37... Kxc3 {[%clk 0:01:32.7]} 38. Kxb7 {[%clk 0:01:21.1]} 38... a5 {[%clk
0:01:31.5]} 39. Ka6 {[%clk 0:01:21.8]} 39... a4 {[%clk 0:01:31.6]} 40. Ka5
{[%clk 0:01:22.7]} 40... a3 {[%clk 0:01:31.3]} 41. Ka4 {[%clk 0:01:23.6]} 41...
a2 {[%clk 0:01:28.6]} 42. Ka3 {[%clk 0:01:24.5]} 42... a1=Q# {[%clk 0:01:28.1]}
0-1

[Event "Early-Titled-Tuesday-Blitz-April-23-2024"]
[Site "Chess.com"]
[Date "2024.04.23"]
[Round "1"]
[White "SAInt_666"]
[Black "Smiechu"]
[Result "0-1"]
[WhiteElo "2725"]
[BlackElo "2445"]
[TimeControl "180+1"]
[EndTime "8:05:10 PDT"]
[Termination "Smiechu won by resignation"]

1. e4 {[%clk 0:03:00.9]} 1... c5 {[%clk 0:02:55.5]} 2. Nf3 {[%clk 0:03:00.8]}
2... g6 {[%clk 0:02:55.3]} 3. c3 {[%clk 0:02:59.9]} 3... Bg7 {[%clk 0:02:54.2]}
4. d4 {[%clk 0:03:00.5]} 4... cxd4 {[%clk 0:02:54.1]} 5. cxd4 {[%clk 0:03:01.4]}
5... d5 {[%clk 0:02:54.8]} 6. e5 {[%clk 0:03:01.8]} 6... Nh6 {[%clk 0:02:54.4]}
7. Bb5+ {[%clk 0:02:58.5]} 7... Bd7 {[%clk 0:02:53.1]} 8. Qa4 {[%clk 0:02:55]}
8... O-O {[%clk 0:02:47.8]} 9. Nc3 {[%clk 0:02:52.2]} 9... e6 {[%clk 0:02:39.2]}
10. O-O {[%clk 0:02:48.2]} 10... Bxb5 {[%clk 0:02:29]} 11. Qxb5 {[%clk
0:02:49.1]} 11... Qd7 {[%clk 0:02:26.9]} 12. Qd3 {[%clk 0:02:31.9]} 12... Nc6
{[%clk 0:02:23.5]} 13. Bg5 {[%clk 0:02:29.9]} 13... Nf5 {[%clk 0:02:22.7]} 14.
g4 {[%clk 0:02:29]} 14... Nfe7 {[%clk 0:02:22.4]} 15. Qe3 {[%clk 0:02:29.4]}
15... f6 {[%clk 0:02:19.1]} 16. exf6 {[%clk 0:02:26.3]} 16... Bxf6 {[%clk
0:02:20]} 17. Rfe1 {[%clk 0:02:22.7]} 17... e5 {[%clk 0:02:10.6]} 18. Bxf6
{[%clk 0:02:15.5]} 18... Qxg4+ {[%clk 0:02:05.8]} 19. Kh1 {[%clk 0:02:15.4]}
19... Rxf6 {[%clk 0:02:06.2]} 20. Nxe5 {[%clk 0:01:54]} 20... Nxe5 {[%clk
0:02:04.8]} 21. dxe5 {[%clk 0:01:54.9]} 21... Rf3 {[%clk 0:02:02.2]} 22. Qc5
{[%clk 0:01:54.7]} 22... Raf8 {[%clk 0:01:55.4]} 23. Rg1 {[%clk 0:01:44.4]}
23... Qh4 {[%clk 0:01:55]} 24. Rg2 {[%clk 0:01:37.1]} 24... Rxf2 {[%clk
0:01:47.6]} 25. Rag1 {[%clk 0:01:13]} 25... Rxg2 {[%clk 0:01:42.3]} 26. Rxg2
{[%clk 0:01:13.9]} 26... d4 {[%clk 0:01:35.2]} 27. Qc4+ {[%clk 0:01:06]} 27...
Kh8 {[%clk 0:01:32.8]} 28. Nb5 {[%clk 0:00:54]} 28... Qe1+ {[%clk 0:01:25.7]}
29. Rg1 {[%clk 0:00:50.5]} 29... Qe4+ {[%clk 0:01:26.3]} 30. Rg2 {[%clk
0:00:51.1]} 30... Rf2 {[%clk 0:01:24.4]} 0-1

[Event "Early-Titled-Tuesday-Blitz-April-23-2024"]
[Site "Chess.com"]
[Date "2024.04.23"]
[Round "1"]
[White "temiksmozg"]
[Black "RichardShtivelband"]
[Result "1-0"]
[WhiteElo "2675"]
[BlackElo "2366"]
[TimeControl "180+1"]
[EndTime "8:05:15 PDT"]
[Termination "temiksmozg won by resignation"]

1. e4 {[%clk 0:03:00.9]} 1... c5 {[%clk 0:02:51.4]} 2. Nf3 {[%clk 0:02:59.7]}
2... Nc6 {[%clk 0:02:46.3]} 3. d4 {[%clk 0:02:59.5]} 3... cxd4 {[%clk
0:02:43.2]} 4. Nxd4 {[%clk 0:03:00.4]} 4... Nf6 {[%clk 0:02:41.7]} 5. Nc3 {[%clk
0:02:59.6]} 5... e5 {[%clk 0:02:40.6]} 6. Ndb5 {[%clk 0:02:59]} 6... d6 {[%clk
0:02:39.2]} 7. Nd5 {[%clk 0:02:58.4]} 7... Nxd5 {[%clk 0:02:37]} 8. exd5 {[%clk
0:02:59.3]} 8... Nb8 {[%clk 0:02:35]} 9. c4 {[%clk 0:02:59.1]} 9... Be7 {[%clk
0:02:33.6]} 10. c5 {[%clk 0:02:50.2]} 10... O-O {[%clk 0:02:28.4]} 11. Be2
{[%clk 0:02:49.2]} 11... a6 {[%clk 0:02:26.6]} 12. Nxd6 {[%clk 0:02:47.1]} 12...
Bxd6 {[%clk 0:02:26.6]} 13. cxd6 {[%clk 0:02:48]} 13... Qxd6 {[%clk 0:02:26.3]}
14. O-O {[%clk 0:02:47.2]} 14... Nd7 {[%clk 0:02:23.6]} 15. f4 {[%clk
0:02:45.4]} 15... Nf6 {[%clk 0:02:16.4]} 16. fxe5 {[%clk 0:02:45.1]} 16... Qxe5
{[%clk 0:02:15.5]} 17. d6 {[%clk 0:02:39.8]} 17... Be6 {[%clk 0:02:14]} 18. Bf4
{[%clk 0:02:38.6]} 18... Qc5+ {[%clk 0:02:12.5]} 19. Kh1 {[%clk 0:02:38.1]}
19... Nd5 {[%clk 0:02:11.1]} 20. Rc1 {[%clk 0:02:35.6]} 20... Qb6 {[%clk
0:02:08.5]} 21. Qd2 {[%clk 0:02:29.5]} 21... Rad8 {[%clk 0:01:57.1]} 22. Bg3
{[%clk 0:02:29.2]} 22... Rd7 {[%clk 0:01:50.6]} 23. Bf3 {[%clk 0:02:27.7]} 23...
Ne3 {[%clk 0:01:44.3]} 24. Rfe1 {[%clk 0:02:27.5]} 24... Nf5 {[%clk 0:01:43.3]}
25. Bf4 {[%clk 0:02:25.8]} 25... Nxd6 {[%clk 0:01:39.9]} 26. Qe3 {[%clk
0:02:01.1]} 26... Qxe3 {[%clk 0:01:28.6]} 27. Rxe3 {[%clk 0:01:59.1]} 27... Nc4
{[%clk 0:01:28.3]} 28. Rxe6 {[%clk 0:01:53.1]} 28... fxe6 {[%clk 0:01:24.2]} 29.
Rxc4 {[%clk 0:01:52.7]} 29... e5 {[%clk 0:00:44.3]} 30. Be3 {[%clk 0:01:47.5]}
30... Rfd8 {[%clk 0:00:28.6]} 31. h3 {[%clk 0:01:44.3]} 1-0